bitfinex/quotes_SOLUSD_20240708
["timestamp","ask_amount","ask_price","bid_price","bid_amount"]
[1720435255060,7.1141,140.57,140.48,0.17]
[1720435255440,29.2061,140.6,140.49,34.22]
[1720435255644,7.0782586,140.61,140.5,15.4789]
[1720435255645,7.112,140.61,140.5,15.4789]
[1720435255849,7.1115,140.62,140.5,115.4789]
[1720435256053,7.1115,140.62,140.52,34.22]
[1720435256353,7.1115,140.62,140.53,0.17]
[1720435256563,5.5527903,140.65,140.53,0.17]
[1720435256731,7.111,140.63,140.53,0.17]
[1720435257131,8.69470646,140.66,140.53,0.17]
[1720435257357,7.1118,140.61,140.53,0.17]
[1720435257545,7.1113,140.63,140.53,0.17]
[1720435257941,8.69470646,140.66,140.53,0.17]
[1720435258154,17.7753,140.65,140.53,0.17]
[1720435258360,7.1128,140.6,140.51,6.5155]
[1720435258730,17.7777,140.63,140.51,6.5155]
[1720435258937,7.1137,140.58,140.51,6.5155]
[1720435259156,7.1139,140.57,140.51,6.5155]
[1720435259337,7.1146,140.56,140.51,6.5155]
[1720435259853,7.1149,140.55,140.51,6.5155]
[1720435260028,7.1149,140.55,140.5,15.3089]
[1720435260234,7.1149,140.55,140.48,6.1253]
[1720435260943,20.0,140.54,140.46,15.3089]
[1720435261156,34.22,140.53,140.45,6.1915]
[1720435261336,7.1175,140.5,140.45,6.1915]
[1720435261749,52.0104,140.53,140.42,21.5004]
[1720435261937,7.118,140.49,140.42,21.5004]
[1720435262144,20.0,140.48,140.42,21.5004]
[1720435262842,27.1185,140.48,140.42,21.5004]
[1720435263057,20.0,140.48,140.42,21.5004]
[1720435263448,20.0,140.52,140.42,21.5004]
[1720435263771,20.0,140.55,140.42,21.5004]
[1720435263952,20.0,140.55,140.43,1.59200471]
[1720435264159,17.7862,140.56,140.43,1.59200471]
[1720435264336,6.1157,140.57,140.44,1.42190345]
[1720435264654,7.1149,140.55,140.45,0.17]
[1720435264860,7.1154,140.54,140.43,100.17]
[1720435265752,20.0,140.53,140.43,100.17]
[1720435265950,20.0,140.53,140.43,0.17]
[1720435266140,20.0,140.56,140.43,0.17]
[1720435266341,7.1164,140.52,140.43,0.17]
[1720435266748,7.1159,140.53,140.43,0.17]
[1720435266942,7.1155,140.54,140.43,0.17]
[1720435267149,20.0,140.53,140.42,21.5004]
[1720435267343,7.1165,140.52,140.42,21.5004]
[1720435267546,20.0,140.51,140.42,21.5004]
[1720435267758,27.1171,140.51,140.42,21.5004]
[1720435267956,20.0,140.51,140.42,21.5004]
[1720435268762,27.1169,140.51,140.42,21.5004]
[1720435268954,27.1169,140.51,140.43,0.17]
[1720435269454,7.115,140.55,140.43,0.17]
[1720435269662,7.1155,140.54,140.43,0.17]
[1720435269955,7.1164,140.52,140.43,0.17]
[1720435270137,7.117,140.51,140.43,0.17]
[1720435270660,7.116,140.53,140.43,0.17]
[1720435270860,20.0,140.52,140.43,0.17]
[1720435271034,27.1165,140.52,140.43,0.17]
[1720435271462,20.0,140.52,140.43,0.17]
[1720435271838,7.1153,140.55,140.43,100.17]
[1720435272038,7.1154,140.54,140.43,100.17]
[1720435272239,7.1154,140.54,140.43,0.17]
[1720435273261,20.0,140.53,140.43,0.17]
[1720435273951,27.1159,140.53,140.43,0.17]
[1720435274478,20.0,140.53,140.42,21.5004]
[1720435274773,7.1174,140.5,140.42,21.5004]
[1720435275269,7.117,140.51,140.42,21.5004]
[1720435275575,20.0,140.5,140.42,21.5004]
[1720435275947,20.0,140.5,140.43,0.17]
[1720435276268,20.0,140.52,140.43,0.17]
[1720435276439,6.1157,140.57,140.43,0.17]
[1720435276647,7.1154,140.54,140.43,0.17]
[1720435276836,7.1165,140.52,140.43,0.17]
[1720435277046,7.1171,140.51,140.43,0.17]
[1720435277244,17.7863,140.56,140.43,0.17]
[1720435277562,7.117,140.51,140.43,0.17]
[1720435278057,17.7863,140.56,140.43,0.17]
[1720435278263,7.1155,140.54,140.43,0.17]
[1720435278445,20.0,140.55,140.43,0.17]
[1720435278446,20.0,140.53,140.43,0.17]
[1720435278646,6.1157,140.57,140.43,100.17]
[1720435278855,6.1157,140.57,140.43,120.17]
[1720435279045,8.44594328,140.61,140.46,100.0]
[1720435279260,21.9572,140.76,140.43,41.62]
[1720435279261,10.30255257,140.76,140.58,121.45]
[1720435279445,15.5492,140.82,140.66,0.2806]
[1720435279446,23.37864045,140.75,140.66,0.2806]
[1720435279643,2.83714178,140.74,140.61,0.2806]
[1720435279955,53.9692,140.82,140.67,7.1088]
[1720435279956,20.53258416,140.81,140.67,7.1088]
[1720435280157,7.1057,140.74,140.67,7.1088]
[1720435281252,7.1057,140.74,140.58,21.45]
[1720435281253,17.7629,140.75,140.58,100.0]
[1720435281486,7.1058,140.73,140.68,0.17]
[1720435282041,7.1063,140.72,140.68,0.17]
[1720435282255,7.1063,140.72,140.67,0.17]
[1720435282864,20.0,140.71,140.67,0.17]
[1720435283065,7.1057,140.74,140.67,0.17]
[1720435283452,7.1048,140.75,140.68,7.1082]
[1720435283668,7.1048,140.75,140.69,7.2777]
[1720435283868,7.1048,140.75,140.7,0.17]
[1720435284054,7.1053,140.74,140.7,0.17]
[1720435284249,17.7582,140.78,140.7,0.17]
[1720435284250,7.1064,140.72,140.7,0.17]
[1720435284450,7.1068,140.71,140.6,28.499861]
[1720435284768,17.7617,140.76,140.6,28.499861]
[1720435284769,20.0,140.7,140.67,7.1087]
[1720435284971,7.1063,140.72,140.6,28.499861]
[1720435285267,20.0,140.71,140.6,28.499861]
[1720435285854,38.42,140.79,140.59,100.0]
[1720435285855,7.1057,140.74,140.59,100.0]
[1720435286170,20.0,140.73,140.61,100.0]
[1720435286467,20.0,140.73,140.68,7.1082]
[1720435286669,20.0,140.73,140.69,0.17]
[1720435287471,20.0,140.77,140.69,0.17]
[1720435287654,7.1067,140.72,140.69,0.17]
[1720435287863,20.0,140.71,140.69,0.17]
[1720435288678,17.7704,140.69,140.6,28.500427]
[1720435288972,20.0,140.68,140.56,6.6425]
[1720435289153,7.1082,140.69,140.63,7.1107]
[1720435289358,7.1089,140.67,140.61,7.1114]
[1720435289549,20.0,140.66,140.63,7.1107]
[1720435289756,20.0,140.71,140.63,7.1107]
[1720435289951,20.0,140.71,140.57,28.509165]
[1720435289952,7.1074,140.7,140.57,28.509165]
[1720435290176,20.0,140.69,140.57,28.509165]
[1720435290371,27.1079,140.69,140.63,7.1104]
[1720435290566,7.1084,140.68,140.62,7.1112]
[1720435290873,20.0,140.67,140.63,0.17]
[1720435291087,7.1094,140.66,140.57,28.509165]
[1720435291449,20.0,140.67,140.57,28.509165]
[1720435291662,20.0,140.67,140.63,7.1107]
[1720435291868,20.0,140.68,140.63,7.1107]
[1720435292779,20.0,140.68,140.64,0.17]
[1720435293475,20.0,140.71,140.64,0.17]
[1720435293665,7.1074,140.7,140.64,7.2799]
[1720435293973,20.0,140.69,140.64,0.17]
[1720435294171,27.1068,140.71,140.64,0.17]
[1720435294368,7.1073,140.7,140.65,7.1097]
[1720435294563,20.0,140.69,140.66,0.17]
[1720435294766,27.1068,140.71,140.66,0.17]
[1720435296579,7.1088,140.67,140.66,0.17]
[1720435296784,20.0,140.71,140.66,0.17]
[1720435296785,7.1083,140.68,140.66,0.17]
[1720435297276,7.1079,140.69,140.66,0.17]
[1720435297458,20.0,140.71,140.66,0.17]
[1720435297459,27.1083,140.68,140.66,0.17]
[1720435297661,20.0,140.67,140.66,0.17]
[1720435298279,27.1088,140.67,140.62,7.1112]
[1720435298961,20.0,140.67,140.62,7.1112]
[1720435299164,20.0,140.67,140.61,7.1117]
[1720435299382,7.1089,140.67,140.62,7.1112]
[1720435299573,20.0,140.66,140.61,7.1117]
[1720435300382,20.0,140.66,140.62,0.17]
[1720435300765,20.0,140.66,140.59,7.1125]
[1720435300964,7.1099,140.65,140.6,7.1123]
[1720435301164,20.0,140.64,140.6,7.1123]
[1720435301383,20.0,140.64,140.61,7.1117]
[1720435301786,20.0,140.65,140.61,7.1117]
[1720435301979,20.0,140.66,140.61,7.1117]
[1720435302178,27.1094,140.66,140.61,7.1117]
[1720435302778,20.0,140.66,140.62,7.1113]
[1720435303078,20.0,140.68,140.62,7.1113]
[1720435303267,20.0,140.68,140.63,0.17]
[1720435303670,7.1089,140.67,140.63,0.17]
[1720435303877,20.0,140.66,140.54,34.06]
[1720435304084,51.8337,140.66,140.53,5.8046418]
[1720435304283,7.1105,140.64,140.58,14.2246]
[1720435304496,20.0,140.63,140.58,14.2246]
[1720435304989,20.0,140.63,140.59,7.1128]
[1720435305189,20.0,140.63,140.6,0.17]
[1720435305684,20.0,140.63,140.6,7.2822]
[1720435305890,20.0,140.64,140.61,7.1114]
[1720435306103,20.0,140.68,140.62,0.17]
[1720435306306,7.1092,140.67,140.62,0.17]
[1720435306609,7.1094,140.66,140.62,0.17]
[1720435306810,20.0,140.65,140.62,0.17]
[1720435307224,7.1104,140.64,140.62,0.17]
[1720435307392,20.0,140.65,140.62,0.17]
[1720435307393,20.0,140.63,140.62,0.17]
[1720435307598,20.0,140.63,140.61,0.17]
[1720435308087,27.1098,140.65,140.61,0.17]
[1720435308495,20.0,140.65,140.61,0.17]
[1720435310210,7.1107,140.64,140.58,14.2242]
[1720435310411,20.0,140.65,140.58,14.2242]
[1720435310412,20.0,140.63,140.58,7.1113]
[1720435310717,7.111,140.63,140.58,7.1113]
[1720435311008,22.8952,140.62,140.58,7.1113]
[1720435311212,7.1126,140.6,140.54,7.1153]
[1720435311594,7.1126,140.6,140.55,7.1148]
[1720435311995,27.1119,140.61,140.55,7.1148]
[1720435312194,27.1119,140.61,140.56,7.1143]
[1720435312619,27.1119,140.61,140.57,0.17]
[1720435312995,20.0,140.61,140.57,0.17]
[1720435313805,27.1118,140.61,140.57,0.17]
[1720435314415,20.0,140.61,140.57,0.17]
[1720435314888,27.112,140.61,140.57,0.17]
[1720435315298,20.0,140.61,140.57,0.17]
[1720435315927,7.1125,140.6,140.57,0.17]
[1720435316135,20.0,140.59,140.57,0.17]
[1720435316411,20.0,140.59,140.53,7.1158]
[1720435316625,34.06,140.57,140.42,6.3885]
[1720435316808,7.1157,140.54,140.48,7.1183]
[1720435317132,7.1159,140.53,140.47,7.1188]
[1720435317289,27.1159,140.53,140.47,7.1188]
[1720435317495,27.1159,140.53,140.48,7.1183]
[1720435318229,7.1168,140.52,140.46,7.119]
[1720435318521,20.0,140.51,140.46,7.119]
[1720435319414,27.117,140.51,140.46,7.119]
[1720435319607,27.117,140.51,140.45,7.1198]
[1720435320207,15.0177,140.5,140.34,100.0]
[1720435320402,15.0177,140.5,140.42,7.1214]
[1720435320403,7.1188,140.48,140.42,7.1214]
[1720435320604,20.0,140.47,140.36,100.0]
[1720435320804,20.0,140.47,140.44,7.1204]
[1720435321289,20.0,140.49,140.44,7.1203]
[1720435321497,27.1179,140.49,140.44,7.1203]
[1720435321822,20.0,140.49,140.45,7.1198]
[1720435322541,20.0,140.49,140.46,0.17]
[1720435322823,7.116,140.53,140.47,7.1189]
[1720435323119,23.2529,140.54,140.48,7.1183]
[1720435323337,16.1374,140.54,140.49,0.17]
[1720435323614,7.1163,140.53,140.49,0.17]
[1720435323833,16.1374,140.54,140.49,0.17]
[1720435323834,23.2529,140.54,140.49,0.17]
[1720435324039,16.1374,140.54,140.49,7.2875]
[1720435324215,16.1374,140.54,140.49,0.17]
[1720435324415,7.116,140.53,140.48,0.17]
[1720435324629,16.1374,140.54,140.48,0.17]
[1720435325228,7.117,140.51,140.48,0.17]
[1720435325421,7.1179,140.49,140.48,0.17]
[1720435325623,7.1175,140.5,140.48,0.17]
[1720435325832,7.1169,140.51,140.48,0.17]
[1720435326028,20.0,140.5,140.48,0.17]
[1720435328136,20.0,140.5,140.47,0.17]
[1720435331628,27.1175,140.5,140.47,0.17]
[1720435331830,20.0,140.5,140.47,0.17]
[1720435332063,7.118,140.49,140.47,0.17]
[1720435333555,20.0,140.48,140.47,0.17]
[1720435335745,23.253,140.54,140.47,0.17]
[1720435335968,16.1374,140.54,140.47,0.17]
[1720435336644,23.2529,140.54,140.47,0.17]
[1720435336962,15.7369,140.57,140.47,0.17]
[1720435337133,7.1152,140.55,140.46,0.17]
[1720435337731,15.7369,140.57,140.46,0.17]
[1720435337947,7.1135,140.58,140.46,20.17]
[1720435338261,7.1139,140.57,140.46,20.17]
[1720435339161,20.0,140.56,140.46,20.17]
[1720435339538,20.0,140.57,140.46,20.17]
[1720435339932,20.0,140.57,140.46,54.23]
[1720435340128,20.0,140.57,140.46,34.23]
[1720435340551,7.1144,140.56,140.46,0.17]
[1720435340726,7.114,140.57,140.46,20.17]
[1720435340931,20.0,140.56,140.46,20.17]
[1720435341232,20.0,140.56,140.46,120.17]
[1720435341661,27.1141,140.57,140.46,120.17]
[1720435342538,7.1144,140.56,140.46,20.17]
[1720435342762,20.0,140.55,140.45,6.1435]
[1720435342955,20.0,140.57,140.45,6.1435]
[1720435343146,7.116,140.53,140.45,6.1435]
[1720435343552,71.8452,140.57,140.45,6.1435]
[1720435343958,7.1152,140.55,140.45,6.1435]
[1720435344135,20.0,140.54,140.45,6.1435]
[1720435344840,7.1145,140.56,140.46,0.17]
[1720435344841,7.1152,140.55,140.46,0.17]
[1720435345145,20.0,140.54,140.46,0.17]
[1720435345562,7.1135,140.58,140.46,0.17]
[1720435345861,7.1135,140.58,140.46,120.17]
[1720435346255,7.1139,140.57,140.46,120.17]
[1720435346840,20.0,140.56,140.46,120.17]
[1720435347238,20.0,140.56,140.46,20.17]
[1720435348666,20.0,140.56,140.46,120.17]
[1720435348959,20.0,140.57,140.46,120.17]
[1720435349167,27.1139,140.57,140.46,120.17]
[1720435350279,20.0,140.57,140.46,20.17]
[1720435350561,34.06,140.58,140.46,20.17]
[1720435350765,7.1159,140.53,140.45,6.1435]
[1720435351339,17.7864,140.56,140.45,6.1435]
[1720435351541,20.0,140.55,140.45,6.1435]
[1720435352571,27.1153,140.55,140.45,6.1435]
[1720435353073,27.1153,140.55,140.46,0.17]
[1720435353896,20.0,140.55,140.46,0.17]
[1720435354367,27.115,140.55,140.46,0.17]
[1720435354566,20.0,140.55,140.46,0.17]
[1720435354994,27.1149,140.55,140.46,0.17]
[1720435355298,20.0,140.55,140.46,0.17]
[1720435355482,27.115,140.55,140.46,0.17]
[1720435355676,7.1154,140.54,140.46,0.17]
[1720435356802,7.1154,140.54,140.45,6.1435]
[1720435357174,27.115,140.55,140.45,6.1435]
[1720435358070,27.115,140.55,140.46,0.17]
[1720435358269,20.0,140.55,140.46,0.17]
[1720435359285,7.1155,140.54,140.46,0.17]
[1720435360291,27.115,140.55,140.46,0.17]
[1720435362633,22.2035,140.6,140.47,8.56041809]
[1720435362822,22.2035,140.6,140.48,0.17]
[1720435363024,22.2035,140.6,140.48,8.73041809]
[1720435363321,7.1128,140.59,140.49,8.56041809]
[1720435363623,7.1128,140.59,140.5,0.17]
[1720435363911,7.1128,140.59,140.48,0.17]
[1720435364116,20.0,140.58,140.49,8.55963704]
[1720435364288,20.0,140.58,140.5,0.17]
[1720435365525,17.7838,140.58,140.5,0.17]
[1720435365736,7.1154,140.54,140.5,0.17]
[1720435365894,7.1154,140.54,140.45,6.1435]
[1720435366097,7.116,140.53,140.45,6.1435]
[1720435366804,7.1155,140.54,140.45,6.1435]
[1720435367426,7.1155,140.54,140.46,0.17]
[1720435367599,20.0,140.53,140.45,6.1435]
[1720435367804,27.116,140.53,140.45,6.1435]
[1720435368209,27.1159,140.53,140.45,6.1435]
[1720435368612,20.0,140.53,140.45,6.1435]
[1720435368844,20.0,140.53,140.46,0.17]
[1720435370034,20.0,140.54,140.46,0.17]
[1720435370603,27.1154,140.54,140.46,0.17]
[1720435371820,15.509,140.53,140.46,0.17]
[1720435372125,20.0,140.52,140.46,0.17]
[1720435372533,27.1165,140.52,140.46,0.17]
[1720435373327,27.1165,140.52,140.41,10.922358]
[1720435373544,7.1177,140.5,140.41,6.3049]
[1720435373711,20.0,140.49,140.41,6.3049]
[1720435375637,20.0,140.52,140.41,6.3049]
[1720435375844,20.0,140.52,140.42,0.17]
[1720435376946,7.1183,140.49,140.41,6.3049]
[1720435377436,20.0,140.48,140.41,6.3049]
[1720435378206,20.0,140.49,140.41,6.3049]
[1720435378719,22.6253,140.53,140.42,8.56406155]
[1720435379019,15.509,140.53,140.42,8.56406155]
[1720435379221,15.509,140.53,140.42,42.62406155]
[1720435379430,22.6249,140.53,140.43,8.73406155]
[1720435379645,15.509,140.53,140.43,0.17]
[1720435379939,16.2248,140.57,140.44,8.56269516]
[1720435380141,7.1154,140.54,140.45,0.17]
[1720435380530,16.2248,140.57,140.46,6.589]
[1720435380716,16.2248,140.57,140.47,0.17]
[1720435381832,23.3387,140.57,140.47,0.17]
[1720435382142,20.0,140.56,140.47,0.17]
[1720435383142,20.0,140.59,140.48,0.39091577]
[1720435383321,27.1132,140.59,140.49,0.17]
[1720435383511,7.1134,140.58,140.49,0.17]
[1720435383711,20.0,140.57,140.49,0.17]
[1720435384344,15.2259,140.61,140.49,0.17]
[1720435384345,20.0,140.58,140.49,0.17]
[1720435384650,7.1142,140.57,140.49,0.17]
[1720435385132,20.0,140.56,140.49,0.17]
[1720435385726,20.0,140.57,140.49,0.17]
[1720435385953,20.0,140.57,140.46,6.589]
[1720435386120,7.116,140.53,140.46,6.589]
[1720435386520,7.1154,140.54,140.46,6.589]
[1720435386715,20.0,140.53,140.46,6.589]
[1720435387443,20.0,140.54,140.46,6.589]
[1720435387628,27.1155,140.54,140.46,6.589]
[1720435387825,27.1155,140.54,140.47,0.17]
[1720435388228,7.116,140.53,140.47,0.17]
[1720435388851,20.0,140.52,140.43,6.3657]
[1720435389025,7.1174,140.5,140.43,6.3657]
[1720435390019,7.1171,140.51,140.43,6.3657]
[1720435390221,20.0,140.5,140.43,6.3657]
[1720435390440,20.0,140.5,140.44,0.17]
[1720435391364,7.1184,140.49,140.43,6.3657]
[1720435391547,20.0,140.48,140.43,6.3657]
[1720435391845,27.1188,140.48,140.43,6.3657]
[1720435392049,20.0,140.48,140.43,6.3657]
[1720435392543,20.0,140.49,140.43,6.3657]
[1720435392843,20.0,140.49,140.44,0.17]
[1720435393550,27.118,140.49,140.44,0.17]
[1720435394334,20.0,140.49,140.44,0.17]
[1720435394533,20.0,140.5,140.44,0.17]
[1720435395148,7.1179,140.49,140.44,0.17]
[1720435395347,20.0,140.48,140.44,0.17]
[1720435396241,20.0,140.49,140.44,0.17]
[1720435397732,20.0,140.5,140.44,0.17]
[1720435399634,20.0,140.5,140.4,4.6961092]
[1720435399958,34.06,140.52,140.39,6.3861]
[1720435399959,7.1188,140.48,140.39,6.3861]
[1720435400126,20.0,140.47,140.39,6.3861]
[1720435400322,20.0,140.47,140.39,11.12714994]
[1720435400741,27.119,140.47,140.39,11.12714994]
[1720435401138,20.0,140.47,140.4,0.17]
[1720435404554,50.8627,140.54,140.4,0.17]
[1720435404555,15.2856,140.54,140.4,100.17]
[1720435404741,7.1162,140.53,140.4,100.17]
[1720435404941,7.1164,140.52,140.41,8.56363221]
[1720435405146,7.1164,140.52,140.42,0.17]
[1720435405457,7.1164,140.52,140.4,20.17]
[1720435405655,7.1164,140.52,140.41,8.56373512]
[1720435405836,20.0,140.51,140.42,0.17]
[1720435406545,20.0,140.51,140.41,0.17]
[1720435406943,7.1177,140.5,140.41,0.17]
[1720435407148,20.0,140.51,140.41,0.17]
[1720435407355,34.06,140.52,140.41,0.17]
[1720435407652,7.1175,140.5,140.41,0.17]
[1720435408049,20.0,140.51,140.41,0.17]
[1720435408258,20.0,140.53,140.41,0.17]
[1720435408554,15.1365,140.57,140.43,6.0967]
[1720435408747,22.2504,140.57,140.44,8.73331891]
[1720435408945,6.85345197,140.62,140.47,6.3652]
[1720435409256,7.1129,140.59,140.48,0.17]
[1720435409640,7.1134,140.58,140.48,0.17]
[1720435410349,20.0,140.57,140.48,0.17]
[1720435411272,51.8428,140.59,140.48,0.17]
[1720435411456,20.0,140.58,140.48,0.17]
[1720435411756,7.1145,140.56,140.48,0.17]
[1720435412139,20.0,140.58,140.47,6.3652]
[1720435412140,7.1151,140.55,140.47,6.3652]
[1720435412455,20.0,140.55,140.47,6.3652]
[1720435412636,7.1147,140.56,140.47,6.3652]
[1720435412967,27.115,140.55,140.47,6.3652]
[1720435413142,7.115,140.55,140.47,6.3652]
[1720435413341,20.0,140.54,140.47,6.3652]
[1720435413541,20.0,140.54,140.48,0.17]
[1720435414059,20.0,140.55,140.48,0.17]
[1720435414443,7.114,140.57,140.48,0.17]
[1720435415249,7.1145,140.56,140.48,0.17]
[1720435416040,7.1152,140.55,140.48,0.17]
[1720435416551,7.1159,140.53,140.48,0.17]
[1720435416754,20.0,140.52,140.48,0.17]
[1720435417260,20.0,140.53,140.48,0.17]
[1720435419041,7.1155,140.54,140.48,0.17]
[1720435421246,20.0,140.55,140.48,0.17]
[1720435421449,20.0,140.55,140.47,6.3652]
[1720435421757,7.1164,140.53,140.44,6.4925]
[1720435421949,7.1155,140.54,140.44,6.4925]
[1720435422263,20.0,140.55,140.44,6.4925]
[1720435422264,7.116,140.53,140.44,6.4925]
[1720435422964,7.116,140.53,140.45,0.17]
[1720435425065,7.1164,140.52,140.45,0.17]
[1720435425564,20.0,140.55,140.45,0.17]
[1720435425768,7.1157,140.54,140.45,0.17]
[1720435425971,20.0,140.55,140.45,0.17]
[1720435426165,7.1159,140.53,140.45,0.17]
[1720435427085,7.1155,140.54,140.45,0.17]
[1720435427568,7.1159,140.53,140.45,0.17]
[1720435432774,20.0,140.55,140.45,0.17]
[1720435433148,7.1154,140.54,140.45,0.17]
[1720435433354,27.115,140.55,140.45,0.17]
[1720435433749,71.38709788,140.68,140.46,100.0]
[1720435433750,16.1429,140.61,140.46,100.0]
[1720435434054,16.1429,140.61,140.48,140.2872]
[1720435434276,7.1124,140.6,140.49,28.73082952]
[1720435434493,7.1129,140.59,140.49,20.17]
[1720435434661,23.2552,140.61,140.49,20.17]
[1720435434961,7.1125,140.6,140.49,20.17]
[1720435435157,7.1135,140.58,140.49,20.17]
[1720435435386,7.1125,140.6,140.49,20.17]
[1720435436092,16.1429,140.61,140.49,20.17]
[1720435436461,7.1138,140.57,140.49,20.17]
[1720435436983,7.1135,140.58,140.49,20.17]
[1720435437178,7.1129,140.59,140.49,20.17]
[1720435437484,16.1429,140.61,140.49,20.17]
[1720435437687,20.0,140.6,140.49,20.17]
[1720435438057,7.113,140.59,140.49,20.17]
[1720435439394,7.1134,140.58,140.49,20.17]
[1720435439885,71.8416,140.6,140.49,0.17]
[1720435440081,7.1147,140.56,140.48,6.2272]
[1720435441271,7.114,140.57,140.49,0.17]
[1720435441493,54.06,140.6,140.49,0.17]
[1720435441688,7.1133,140.59,140.49,0.17]
[1720435441868,20.0,140.58,140.49,0.17]
[1720435443686,7.1124,140.6,140.49,0.17]
[1720435443872,20.0,140.59,140.49,0.17]
[1720435444070,7.1124,140.6,140.49,0.17]
[1720435444295,7.1124,140.6,140.49,20.17]
[1720435444583,7.1124,140.6,140.5,16.1429]
[1720435444777,7.1119,140.61,140.51,0.17]
[1720435444982,7.1119,140.61,140.52,6.5171]
[1720435445168,7.1119,140.61,140.53,0.17]
[1720435445571,381.4,140.69,140.53,134.23]
[1720435445572,34.1742,140.69,140.53,134.23]
[1720435445890,7.1099,140.65,140.53,134.23]
[1720435446088,7.1099,140.65,140.54,20.0]
[1720435446278,7.1099,140.65,140.55,0.17]
[1720435446477,7.1104,140.64,140.55,0.17]
[1720435446973,7.111,140.63,140.55,0.17]
[1720435447186,7.1118,140.62,140.55,0.17]
[1720435447773,7.1118,140.62,140.54,0.17]
[1720435449381,7.1107,140.64,140.54,0.17]
[1720435449581,7.1108,140.63,140.54,0.17]
[1720435450777,7.1089,140.67,140.55,6.1002]
[1720435451094,7.1096,140.66,140.56,34.23]
[1720435451698,7.1084,140.68,140.57,20.0]
[1720435451880,16.4039,140.69,140.58,6.3139]
[1720435451881,7.1079,140.69,140.58,6.3139]
[1720435452289,7.1085,140.68,140.58,6.3139]
[1720435452489,7.1088,140.67,140.58,6.3139]
[1720435454102,34.06,140.67,140.58,6.1439]
[1720435454304,17.7747,140.65,140.58,6.1439]
[1720435454615,20.0,140.66,140.58,6.1439]
[1720435454798,7.1107,140.64,140.58,6.1439]
[1720435455002,7.111,140.63,140.58,6.1439]
[1720435455804,7.111,140.63,140.59,0.17]
[1720435456485,37.7739,140.66,140.59,0.17]
[1720435456686,7.1119,140.61,140.54,6.1221]
[1720435457208,20.0,140.6,140.5,22.6273]
[1720435457387,7.1139,140.57,140.5,6.4844]
[1720435458402,34.06,140.58,140.5,6.4844]
[1720435458588,20.0,140.57,140.45,26.1365]
[1720435458795,7.1154,140.54,140.45,26.1365]
[1720435459805,7.1149,140.55,140.46,0.17]
[1720435461290,7.1145,140.56,140.46,0.17]
[1720435462011,7.115,140.55,140.46,0.17]